[Event "SS Manhem Chess Week 2022: Goteborg Open"]
[Site "Schackcentrum, Vegagatan 20, Gothenburg, Sweden"]
[Date "2022.08.13"]
[Round "6.13"]
[White "Sundin, Sven-Ingvar"]
[Black "Ghaderi, Noan"]
[Result "1-0"]
[TimeControl "15 minutes + 5 seconds per move from move one (Round 1 - 4) / 90 minutes + 30 seconds per move from move one (Round 5 - 8)"]
[WhiteFideId "1724517"]
[BlackFideId "1747096"]
[WhiteElo "1637"]
[BlackElo "1367"]

1. e4 {[%clk 01:30:57]} {[%emt 00:00:02]} c6 {[%clk 01:30:55]} {[%emt
00:00:06]} 2. d4 {[%clk 01:31:14]} {[%emt 00:00:11]} d5 {[%clk 01:31:15]}
{[%emt 00:00:11]} 3. e5 {[%clk 01:31:24]} {[%emt 00:00:20]} Bf5 {[%clk
01:31:19]} {[%emt 00:00:26]} 4. h4 {[%clk 01:31:38]} {[%emt 00:00:15]} h6
{[%clk 01:31:42]} {[%emt 00:00:08]} 5. g4 {[%clk 01:31:27]} {[%emt 00:00:40]}
Bd7 {[%clk 01:31:01]} {[%emt 00:01:12]} 6. Bd3 {[%clk 01:30:43]} {[%emt
00:01:12]} e6 {[%clk 01:30:51]} {[%emt 00:00:41]} 7. Nf3 {[%clk 01:30:07]}
{[%emt 00:01:05]} Be7 {[%clk 01:29:04]} {[%emt 00:02:18]} 8. Bf4 {[%clk
01:28:20]} {[%emt 00:02:17]} Na6 {[%clk 01:28:21]} {[%emt 00:01:14]} 9. c3
{[%clk 01:27:57]} {[%emt 00:00:52]} c5 {[%clk 01:28:18]} {[%emt 00:00:35]} 10.
a3 {[%clk 01:26:47]} {[%emt 00:01:39]} c4 {[%clk 01:28:02]} {[%emt 00:00:46]}
11. Bc2 {[%clk 01:26:49]} {[%emt 00:00:27]} Nc7 {[%clk 01:26:45]} {[%emt
00:01:49]} 12. Nbd2 {[%clk 01:26:38]} {[%emt 00:00:39]} a6 {[%clk 01:24:34]}
{[%emt 00:02:42]} 13. Ke2 {[%clk 01:26:21]} {[%emt 00:00:47]} Bc6 {[%clk
01:19:38]} {[%emt 00:05:27]} 14. Qg1 {[%clk 01:25:22]} {[%emt 00:01:29]} Kd7
{[%clk 01:13:09]} {[%emt 00:07:00]} 15. h5 {[%clk 01:23:47]} {[%emt 00:02:04]}
f6 {[%clk 01:06:02]} {[%emt 00:07:38]} 16. Bg6 {[%clk 01:22:57]} {[%emt
00:01:19]} Kc8 {[%clk 01:02:55]} {[%emt 00:03:37]} 17. Qg3 {[%clk 01:17:19]}
{[%emt 00:06:07]} b5 {[%clk 01:00:47]} {[%emt 00:02:39]} 18. exf6 {[%clk
01:17:18]} {[%emt 00:00:30]} Nxf6 {[%clk 00:59:10]} {[%emt 00:02:08]} 19. Ne5
{[%clk 01:17:26]} {[%emt 00:00:22]} Be8 {[%clk 00:55:45]} {[%emt 00:03:55]} 20.
Nf7 {[%clk 01:14:23]} {[%emt 00:03:31]} Bxf7 {[%emt 00:00:43]} 21. Bxf7 {[%clk
01:14:43]} {[%emt 00:00:08]} Nfe8 {[%clk 00:54:37]} {[%emt 00:01:29]} 22. Nf3
{[%clk 01:13:57]} {[%emt 00:01:16]} Rf8 {[%clk 00:43:59]} {[%emt 00:11:08]} 23.
Ne5 {[%clk 01:13:04]} {[%emt 00:01:22]} Bd6 {[%clk 00:42:14]} {[%emt 00:02:16]}
24. Bg6 {[%clk 01:12:35]} {[%emt 00:00:57]} Nf6 {[%clk 00:34:17]} {[%emt
00:08:28]} 25. f3 {[%clk 01:10:42]} {[%emt 00:02:22]} Kb7 {[%clk 00:32:12]}
{[%emt 00:02:37]} 26. Bc2 {[%clk 00:58:49]} {[%emt 00:12:23]} Nd7 {[%clk
00:28:36]} {[%emt 00:04:05]} 27. Be3 {[%clk 00:57:24]} {[%emt 00:01:55]} Ne8
{[%clk 00:22:24]} {[%emt 00:06:42]} 28. f4 {[%clk 00:57:17]} {[%emt 00:00:36]}
Nxe5 {[%clk 00:19:11]} {[%emt 00:03:44]} 29. dxe5 {[%clk 00:56:53]} {[%emt
00:00:54]} Bc7 {[%clk 00:19:33]} {[%emt 00:00:08]} 30. a4 {[%clk 00:53:07]}
{[%emt 00:04:15]} Qd7 {[%clk 00:16:02]} {[%emt 00:04:01]} 31. b3 {[%clk
00:52:17]} {[%emt 00:01:20]} Bb8 {[%clk 00:12:55]} {[%emt 00:03:37]} 32. bxc4
{[%clk 00:52:05]} {[%emt 00:00:41]} bxc4 {[%clk 00:12:37]} {[%emt 00:00:49]} 33.
Rab1+ {[%clk 00:50:24]} {[%emt 00:02:11]} Kc8 {[%clk 00:12:31]} {[%emt
00:00:36]} 34. Rb2 {[%clk 00:50:11]} {[%emt 00:00:42]} Ba7 {[%clk 00:10:57]}
{[%emt 00:02:05]} 35. Rhb1 {[%clk 00:50:10]} {[%emt 00:00:31]} Rf7 {[%clk
00:10:37]} {[%emt 00:00:50]} 36. a5 {[%clk 00:48:39]} {[%emt 00:02:01]} Qc6
{[%clk 00:08:47]} {[%emt 00:02:21]} 37. Bg6 {[%clk 00:45:19]} {[%emt 00:03:49]}
Re7 {[%clk 00:08:13]} {[%emt 00:01:05]} 38. Qf2 {[%clk 00:45:14]} {[%emt
00:00:33]} Bxe3 {[%clk 00:08:27]} {[%emt 00:00:16]} 39. Qxe3 {[%clk 00:45:20]}
{[%emt 00:00:24]} Nc7 {[%clk 00:07:58]} {[%emt 00:01:01]} 40. Rb6 {[%clk
00:44:02]} {[%emt 00:01:47]} Qa4 {[%clk 00:08:26]} {[%emt 00:00:03]} 41. Qc5
{[%clk 00:41:02]} {[%emt 00:03:30]} Rd7 {[%clk 00:08:01]} {[%emt 00:00:56]} 42.
Rxe6 {[%clk 00:40:38]} {[%emt 00:00:53]} 1-0

[Event "SS Manhem Chess Week 2022: Goteborg Open"]
[Site "Schackcentrum, Vegagatan 20, Gothenburg, Sweden"]
[Date "2022.08.13"]
[Round "6.14"]
[White "Degerfeldt, Sven"]
[Black "Al Saab, Ranny"]
[Result "1-0"]
[TimeControl "15 minutes + 5 seconds per move from move one (Round 1 - 4) / 90 minutes + 30 seconds per move from move one (Round 5 - 8)"]
[WhiteFideId "1717430"]
[BlackFideId "1768360"]
[WhiteElo "1842"]
[BlackElo "1516"]

1. d4 {[%clk 01:30:57]} {[%emt 00:00:02]} d5 {[%clk 01:30:59]} {[%emt
00:00:02]} 2. Nf3 {[%clk 01:31:25]} {[%emt 00:00:01]} Bf5 {[%clk 01:31:23]}
{[%emt 00:00:07]} 3. c4 {[%clk 01:30:46]} {[%emt 00:01:09]} e6 {[%clk
01:31:52]} {[%emt 00:00:02]} 4. Nc3 {[%clk 01:31:02]} {[%emt 00:00:13]} Bb4
{[%clk 01:32:12]} {[%emt 00:00:11]} 5. e3 {[%clk 01:25:43]} {[%emt 00:05:49]}
Ne7 {[%clk 01:30:54]} {[%emt 00:01:48]} 6. Bd2 {[%clk 01:24:49]} {[%emt
00:01:23]} O-O {[%clk 01:31:06]} {[%emt 00:00:20]} 7. a3 {[%clk 01:25:10]}
{[%emt 00:00:08]} Bxc3 {[%clk 01:31:32]} {[%emt 00:00:04]} 8. Bxc3 {[%clk
01:25:32]} {[%emt 00:00:08]} Nbc6 {[%clk 01:30:25]} {[%emt 00:01:38]} 9. Rc1
{[%clk 01:23:08]} {[%emt 00:02:52]} h6 {[%clk 01:30:23]} {[%emt 00:00:33]} 10.
c5 {[%clk 01:20:02]} {[%emt 00:03:35]} Re8 {[%clk 01:25:21]} {[%emt 00:05:34]}
11. b4 {[%clk 01:20:15]} {[%emt 00:00:17]} a6 {[%clk 01:25:35]} {[%emt
00:00:17]} 12. Be2 {[%clk 01:17:38]} {[%emt 00:03:05]} Ng6 {[%clk 01:24:48]}
{[%emt 00:01:17]} 13. O-O {[%clk 01:15:43]} {[%emt 00:02:24]} Qf6 {[%clk
01:21:47]} {[%emt 00:03:32]} 14. Qb3 {[%clk 01:14:30]} {[%emt 00:01:42]} Bg4
{[%clk 01:21:17]} {[%emt 00:01:01]} 15. Rfe1 {[%clk 01:14:09]} {[%emt
00:00:50]} Bxf3 {[%clk 01:20:44]} {[%emt 00:01:04]} 16. Bxf3 {[%clk 01:13:44]}
{[%emt 00:00:54]} Nh4 {[%clk 01:21:10]} {[%emt 00:00:04]} 17. Be2 {[%clk
01:12:48]} {[%emt 00:01:25]} Ne7 {[%clk 01:18:43]} {[%emt 00:02:58]} 18. Qd1
{[%clk 01:11:27]} {[%emt 00:01:50]} Qg5 {[%clk 01:17:16]} {[%emt 00:01:58]} 19.
g3 {[%clk 01:10:23]} {[%emt 00:01:33]} Nhf5 {[%clk 01:15:07]} {[%emt 00:02:39]}
20. Bd2 {[%clk 01:10:32]} {[%emt 00:00:21]} Qf6 {[%clk 01:14:23]} {[%emt
00:01:07]} 21. Bf3 {[%clk 01:09:06]} {[%emt 00:02:03]} c6 {[%clk 01:14:20]}
{[%emt 00:00:34]} 22. Bc3 {[%clk 01:07:43]} {[%emt 00:01:52]} Ng6 {[%clk
01:04:01]} {[%emt 00:10:50]} 23. Bg2 {[%clk 01:06:06]} {[%emt 00:02:06]} Qd8
{[%clk 01:01:13]} {[%emt 00:03:19]} 24. Qg4 {[%clk 01:04:28]} {[%emt 00:02:07]}
Qg5 {[%clk 00:55:26]} {[%emt 00:06:18]} 25. Qxg5 {[%clk 00:58:05]} {[%emt
00:06:53]} hxg5 {[%clk 00:55:49]} {[%emt 00:00:07]} 26. e4 {[%clk 00:57:34]}
{[%emt 00:01:00]} Nfe7 {[%clk 00:55:55]} {[%emt 00:00:23]} 27. e5 {[%clk
00:57:34]} {[%emt 00:00:31]} Nf5 {[%clk 00:54:33]} {[%emt 00:01:53]} 28. Bf1
{[%clk 00:56:54]} {[%emt 00:01:10]} Nge7 {[%clk 00:53:12]} {[%emt 00:01:52]} 29.
Rcd1 {[%clk 00:56:38]} {[%emt 00:00:44]} Nc8 {[%clk 00:53:17]} {[%emt
00:00:26]} 30. a4 {[%clk 00:56:21]} {[%emt 00:00:47]} Na7 {[%clk 00:53:46]}
{[%emt 00:00:02]} 31. Bb2 {[%clk 00:55:39]} {[%emt 00:01:11]} f6 {[%clk
00:51:35]} {[%emt 00:02:42]} 32. Bd3 {[%clk 00:54:29]} {[%emt 00:01:39]} Kf7
{[%clk 00:50:34]} {[%emt 00:01:32]} 33. Kg2 {[%clk 00:47:00]} {[%emt 00:07:58]}
Nh6 {[%clk 00:44:24]} {[%emt 00:06:41]} 34. Bc1 {[%clk 00:44:34]} {[%emt
00:02:55]} Nf5 {[%clk 00:41:32]} {[%emt 00:03:21]} 35. Be2 {[%clk 00:37:26]}
{[%emt 00:07:38]} Rh8 {[%clk 00:37:59]} {[%emt 00:04:04]} 36. exf6 {[%clk
00:33:24]} {[%emt 00:04:30]} gxf6 {[%clk 00:38:26]} {[%emt 00:00:04]} 37. Bg4
{[%clk 00:33:36]} {[%emt 00:00:18]} Ng7 {[%clk 00:38:26]} {[%emt 00:00:32]} 38.
Be2 {[%clk 00:29:50]} {[%emt 00:04:16]} Nc8 {[%clk 00:35:12]} {[%emt 00:03:44]}
39. Bd3 {[%clk 00:28:42]} {[%emt 00:01:36]} Ne7 {[%clk 00:33:37]} {[%emt
00:02:06]} 40. h3 {[%clk 00:24:46]} {[%emt 00:04:25]} Ngf5 {[%clk 00:32:37]}
{[%emt 00:01:31]} 41. Bc2 {[%clk 00:23:57]} {[%emt 00:01:18]} Rae8 {[%clk
00:25:49]} {[%emt 00:07:16]} 42. Re2 {[%clk 00:19:30]} {[%emt 00:04:59]} Rhg8
{[%clk 00:24:33]} {[%emt 00:01:41]} 43. Bb2 {[%clk 00:16:45]} {[%emt 00:03:21]}
Ng6 {[%clk 00:21:20]} {[%emt 00:03:44]} 44. Bxf5 {[%clk 00:14:50]} {[%emt
00:02:24]} exf5 {[%clk 00:21:48]} {[%emt 00:00:03]} 45. Rde1 {[%clk 00:15:03]}
{[%emt 00:00:16]} f4 {[%clk 00:20:54]} {[%emt 00:01:25]} 46. Rxe8 {[%clk
00:15:03]} {[%emt 00:00:30]} Rxe8 {[%clk 00:21:20]} {[%emt 00:00:03]} 47. Rxe8
{[%clk 00:15:00]} {[%emt 00:00:33]} Kxe8 {[%clk 00:21:41]} {[%emt 00:00:09]} 48.
Bc1 {[%clk 00:14:53]} {[%emt 00:00:37]} fxg3 {[%clk 00:21:49]} {[%emt
00:00:23]} 49. fxg3 {[%clk 00:14:44]} {[%emt 00:00:38]} Ke7 {[%clk 00:22:09]}
{[%emt 00:00:09]} 50. Kf3 {[%clk 00:15:01]} {[%emt 00:00:14]} Ke6 {[%clk
00:22:35]} {[%emt 00:00:05]} 51. Kg4 {[%clk 00:14:59]} {[%emt 00:00:32]} Ne7
{[%clk 00:22:16]} {[%emt 00:00:50]} 52. Be3 {[%clk 00:14:41]} {[%emt 00:00:47]}
Nf5 {[%clk 00:22:25]} {[%emt 00:00:22]} 53. Bf2 {[%clk 00:15:04]} {[%emt
00:00:06]} Ng7 {[%clk 00:22:16]} {[%emt 00:00:40]} 54. h4 {[%clk 00:15:16]}
{[%emt 00:00:17]} gxh4 {[%clk 00:21:25]} {[%emt 00:01:21]} 55. gxh4 {[%clk
00:15:34]} {[%emt 00:00:11]} Kf7 {[%clk 00:19:54]} {[%emt 00:02:02]} 56. h5
{[%clk 00:15:40]} {[%emt 00:00:24]} Ne8 {[%clk 00:17:53]} {[%emt 00:02:31]} 57.
Bg3 {[%clk 00:14:29]} {[%emt 00:01:40]} Kg7 {[%clk 00:15:27]} {[%emt 00:02:57]}
58. Bf4 {[%clk 00:14:15]} {[%emt 00:00:44]} Kf7 {[%clk 00:14:01]} {[%emt
00:01:56]} 59. h6 {[%clk 00:08:44]} {[%emt 00:06:00]} f5+ {[%clk 00:14:12]}
{[%emt 00:00:20]} 60. Kxf5 {[%clk 00:08:57]} {[%emt 00:00:16]} Nf6 {[%clk
00:14:25]} {[%emt 00:00:49]} 61. Be5 {[%clk 00:08:31]} {[%emt 00:00:57]} Nh7
{[%clk 00:14:40]} {[%emt 00:00:14]} 62. Bg7 {[%clk 00:08:35]} {[%emt 00:00:27]}
Nf8 {[%clk 00:14:27]} {[%emt 00:00:45]} 63. Bxf8 {[%clk 00:08:49]} {[%emt
00:00:14]} Kxf8 {[%clk 00:14:40]} {[%emt 00:00:18]} 64. Ke6 {[%clk 00:09:12]}
{[%emt 00:00:07]} 1-0

[Event "SS Manhem Chess Week 2022: Goteborg Open"]
[Site "Schackcentrum, Vegagatan 20, Gothenburg, Sweden"]
[Date "2022.08.13"]
[Round "6.16"]
[White "Kosmidis, Thomas"]
[Black "Karlsson, Stefan"]
[Result "1/2-1/2"]
[TimeControl "15 minutes + 5 seconds per move from move one (Round 1 - 4) / 90 minutes + 30 seconds per move from move one (Round 5 - 8)"]
[WhiteFideId "1753380"]
[BlackFideId "1771183"]
[WhiteElo "1673"]
[BlackElo "1560"]

1. d4 {[%clk 01:30:54]} {[%emt 00:00:05]} Nf6 {[%clk 01:30:56]} {[%emt
00:00:04]} 2. c4 {[%clk 01:31:07]} {[%emt 00:00:17]} e6 {[%clk 01:31:22]}
{[%emt 00:00:04]} 3. Nc3 {[%clk 01:31:19]} {[%emt 00:00:18]} Bb4 {[%clk
01:31:47]} {[%emt 00:00:05]} 4. Qc2 {[%clk 01:31:32]} {[%emt 00:00:17]} O-O
{[%clk 01:32:10]} {[%emt 00:00:07]} 5. Nf3 {[%clk 01:31:35]} {[%emt 00:00:27]}
c5 {[%clk 01:32:25]} {[%emt 00:00:15]} 6. a3 {[%clk 01:31:33]} {[%emt
00:00:33]} Bxc3+ {[%clk 01:32:37]} {[%emt 00:00:18]} 7. Qxc3 {[%clk 01:31:06]}
{[%emt 00:00:56]} cxd4 {[%clk 01:32:42]} {[%emt 00:00:25]} 8. Nxd4 {[%clk
01:31:19]} {[%emt 00:00:17]} d5 {[%clk 01:32:31]} {[%emt 00:00:41]} 9. e3
{[%clk 01:30:43]} {[%emt 00:01:06]} Re8 {[%clk 01:29:57]} {[%emt 00:03:04]} 10.
Be2 {[%clk 01:30:34]} {[%emt 00:00:39]} e5 {[%clk 01:25:40]} {[%emt 00:04:48]}
11. Nf3 {[%emt 00:00:18]} Nc6 {[%emt 00:00:49]} 12. cxd5 {[%clk 01:26:23]}
{[%emt 00:04:06]} Nxd5 {[%clk 01:25:29]} {[%emt 00:01:08]} 13. Qc2 {[%clk
01:25:33]} {[%emt 00:01:19]} e4 {[%clk 01:20:58]} {[%emt 00:05:02]} 14. Nd4
{[%clk 01:21:24]} {[%emt 00:04:34]} Nxd4 {[%clk 01:19:20]} {[%emt 00:02:13]} 15.
exd4 {[%clk 01:21:52]} {[%emt 00:00:02]} e3 {[%clk 00:58:18]} {[%emt 00:21:32]}
16. O-O {[%clk 01:21:09]} {[%emt 00:01:13]} exf2+ {[%clk 00:55:56]} {[%emt
00:02:52]} 17. Rxf2 {[%clk 01:21:28]} {[%emt 00:00:11]} Qh4 {[%clk 00:46:35]}
{[%emt 00:09:49]} 18. Qd1 {[%clk 01:03:23]} {[%emt 00:18:36]} Re4 {[%clk
00:44:04]} {[%emt 00:03:02]} 19. g3 {[%clk 01:03:01]} {[%emt 00:00:51]} Qe7
{[%clk 00:42:12]} {[%emt 00:02:22]} 20. Qd3 {[%clk 01:00:08]} {[%emt 00:03:21]}
Bh3 {[%clk 00:39:26]} {[%emt 00:03:18]} 21. Bd2 {[%clk 00:55:23]} {[%emt
00:05:18]} Nf6 {[%clk 00:24:57]} {[%emt 00:14:57]} 22. Bf3 {[%clk 00:47:29]}
{[%emt 00:08:23]} Re6 {[%clk 00:25:05]} {[%emt 00:00:22]} 23. Bb4 {[%clk
00:43:43]} {[%emt 00:04:16]} Qd7 {[%clk 00:22:29]} {[%emt 00:03:06]} 24. Bc3
{[%clk 00:37:46]} {[%emt 00:06:26]} Rae8 {[%clk 00:21:12]} {[%emt 00:01:48]} 25.
Re2 {[%clk 00:34:58]} {[%emt 00:03:15]} Rxe2 {[%clk 00:20:25]} {[%emt
00:01:20]} 26. Bxe2 {[%clk 00:35:26]} {[%emt 00:00:02]} Ne4 {[%clk 00:17:53]}
{[%emt 00:03:01]} 27. Bf3 {[%clk 00:26:58]} {[%emt 00:08:57]} Ng5 {[%clk
00:15:17]} {[%emt 00:03:07]} 28. Bh1 {[%clk 00:20:24]} {[%emt 00:07:05]} Bf5
{[%clk 00:13:59]} {[%emt 00:01:48]} 29. Qd2 {[%clk 00:15:57]} {[%emt 00:04:56]}
Nh3+ {[%clk 00:13:34]} {[%emt 00:00:56]} 30. Kf1 {[%clk 00:16:16]} {[%emt
00:00:10]} Bg4 {[%clk 00:12:43]} {[%emt 00:01:22]} 31. Qd3 {[%clk 00:10:12]}
{[%emt 00:06:35]} Be2+ {[%clk 00:11:39]} {[%emt 00:01:33]} 32. Qxe2 {[%clk
00:10:40]} {[%emt 00:00:02]} Rxe2 {[%clk 00:12:01]} {[%emt 00:00:08]} 33. Kxe2
{[%clk 00:11:02]} {[%emt 00:00:08]} Qb5+ {[%clk 00:11:25]} {[%emt 00:01:07]} 34.
Ke3 {[%clk 00:08:05]} {[%emt 00:03:26]} Qg5+ {[%clk 00:10:58]} {[%emt
00:00:57]} 35. Ke2 {[%clk 00:06:53]} {[%emt 00:01:43]} Qe7+ {[%clk 00:09:48]}
{[%emt 00:01:39]} 36. Kd2 {[%clk 00:06:39]} {[%emt 00:00:45]} Nf2 {[%clk
00:08:44]} {[%emt 00:01:34]} 37. Re1 {[%clk 00:05:41]} {[%emt 00:01:28]} Qg5+
{[%clk 00:09:07]} {[%emt 00:00:06]} 38. Kc2 {[%clk 00:06:02]} {[%emt 00:00:10]}
Qf5+ {[%clk 00:08:47]} {[%emt 00:00:50]} 39. Kb3 {[%clk 00:04:55]} {[%emt
00:01:37]} Qb5+ {[%clk 00:08:54]} {[%emt 00:00:23]} 40. Kc2 {[%clk 00:04:10]}
{[%emt 00:01:15]} Nxh1 {[%clk 00:08:39]} {[%emt 00:00:45]} 41. Rxh1 {[%clk
00:04:27]} {[%emt 00:00:14]} Qe2+ {[%clk 00:07:23]} {[%emt 00:01:46]} 42. Kc1
{[%clk 00:04:07]} {[%emt 00:00:49]} Qe3+ {[%clk 00:07:07]} {[%emt 00:00:48]} 43.
Bd2 {[%clk 00:03:02]} {[%emt 00:01:35]} Qxd4 {[%clk 00:06:33]} {[%emt
00:01:04]} 44. Re1 {[%clk 00:02:25]} {[%emt 00:01:07]} Qc5+ {[%clk 00:06:10]}
{[%emt 00:00:53]} 45. Bc3 {[%clk 00:02:40]} {[%emt 00:00:15]} h6 {[%clk
00:03:23]} {[%emt 00:03:15]} 46. Re2 {[%clk 00:02:54]} {[%emt 00:00:15]} Kh7
{[%clk 00:01:51]} {[%emt 00:02:03]} 47. Kd1 {[%clk 00:03:05]} {[%emt 00:00:20]}
h5 {[%clk 00:00:44]} {[%emt 00:01:36]} 48. Ke1 {[%clk 00:03:06]} {[%emt
00:00:29]} Qg1+ {[%clk 00:01:01]} {[%emt 00:00:13]} 1/2-1/2

[Event "SS Manhem Chess Week 2022: Goteborg Open"]
[Site "Schackcentrum, Vegagatan 20, Gothenburg, Sweden"]
[Date "2022.08.13"]
[Round "6.17"]
[White "Hammar, Arvid"]
[Black "Josefsson, Ivar"]
[Result "0-1"]
[TimeControl "15 minutes + 5 seconds per move from move one (Round 1 - 4) / 90 minutes + 30 seconds per move from move one (Round 5 - 8)"]
[WhiteFideId "1735977"]
[BlackFideId "1766040"]
[WhiteElo "1384"]
[BlackElo "1565"]

1. c4 {[%clk 01:30:56]} {[%emt 00:00:04]} e6 {[%clk 01:30:53]} {[%emt
00:00:07]} 2. Nc3 {[%clk 01:30:19]} {[%emt 00:01:06]} d5 {[%clk 01:31:14]}
{[%emt 00:00:09]} 3. e3 {[%clk 01:29:32]} {[%emt 00:01:17]} c5 {[%clk
01:30:33]} {[%emt 00:01:11]} 4. d4 {[%clk 01:29:24]} {[%emt 00:00:38]} Nc6
{[%clk 01:29:42]} {[%emt 00:01:22]} 5. Nf3 {[%clk 01:28:21]} {[%emt 00:01:32]}
Nf6 {[%clk 01:29:10]} {[%emt 00:01:03]} 6. cxd5 {[%clk 01:28:24]} {[%emt
00:00:27]} exd5 {[%clk 01:29:26]} {[%emt 00:00:14]} 7. Bb5 {[%clk 01:28:28]}
{[%emt 00:00:26]} a6 {[%clk 01:25:48]} {[%emt 00:04:09]} 8. Qa4 {[%clk
01:27:17]} {[%emt 00:01:40]} Bd7 {[%clk 01:25:36]} {[%emt 00:00:43]} 9. Bxc6
{[%clk 01:26:29]} {[%emt 00:01:17]} Bxc6 {[%clk 01:25:38]} {[%emt 00:00:28]} 10.
Qc2 {[%clk 01:26:27]} {[%emt 00:00:32]} Be7 {[%clk 01:25:28]} {[%emt 00:00:40]}
11. O-O {[%clk 01:25:48]} {[%emt 00:01:09]} O-O {[%clk 01:25:39]} {[%emt
00:00:20]} 12. Ne5 {[%clk 01:25:20]} {[%emt 00:00:57]} Qc7 {[%clk 01:22:26]}
{[%emt 00:03:43]} 13. f4 {[%clk 01:23:02]} {[%emt 00:02:48]} Rae8 {[%clk
01:18:01]} {[%emt 00:04:55]} 14. b3 {[%clk 01:22:24]} {[%emt 00:01:08]} cxd4
{[%clk 01:11:20]} {[%emt 00:07:12]} 15. exd4 {[%clk 01:22:37]} {[%emt
00:00:16]} Bb5 {[%clk 01:08:18]} {[%emt 00:03:32]} 16. Rf3 {[%clk 01:22:35]}
{[%emt 00:00:31]} Ne4 {[%clk 01:01:44]} 17. Bb2 {[%emt 00:07:47]} Rc8 18. a4
{[%clk 01:22:22]} Bd7 {[%clk 00:59:25]} 19. Qd3 {[%emt 00:14:44]} Nxc3 {[%clk
00:47:42]} {[%emt 00:06:11]} 20. Bxc3 {[%clk 01:17:07]} {[%emt 00:01:22]} f6
{[%clk 00:46:08]} {[%emt 00:02:04]} 21. Nxd7 {[%clk 01:16:44]} {[%emt
00:00:52]} Qxd7 {[%clk 00:46:29]} {[%emt 00:00:09]} 22. f5 {[%clk 01:16:48]}
{[%emt 00:00:26]} Bd6 {[%clk 00:43:08]} {[%emt 00:03:52]} 23. Re1 {[%clk
01:16:34]} {[%emt 00:00:42]} Qc7 {[%clk 00:41:09]} {[%emt 00:02:31]} 24. Rh3
{[%clk 01:16:34]} {[%emt 00:00:29]} Rfe8 {[%clk 00:36:45]} {[%emt 00:04:56]} 25.
Rxe8+ {[%clk 01:15:42]} {[%emt 00:01:21]} Rxe8 {[%clk 00:36:46]} {[%emt
00:00:29]} 26. Qf3 {[%clk 01:15:41]} {[%emt 00:00:30]} Qf7 {[%clk 00:35:38]}
{[%emt 00:01:39]} 27. Bd2 {[%clk 01:14:20]} {[%emt 00:01:51]} Re4 {[%clk
00:32:32]} {[%emt 00:03:37]} 28. Qc3 {[%clk 01:13:35]} {[%emt 00:01:14]} Qc7
{[%clk 00:31:39]} {[%emt 00:01:25]} 29. Rh5 {[%clk 01:10:01]} {[%emt 00:04:02]}
Qxc3 {[%clk 00:30:11]} {[%emt 00:01:58]} 30. Bxc3 {[%clk 01:10:21]} {[%emt
00:00:10]} Re3 {[%clk 00:30:04]} {[%emt 00:00:37]} 31. Rh3 {[%clk 01:10:15]}
{[%emt 00:00:35]} Rxh3 {[%clk 00:29:45]} {[%emt 00:00:51]} 32. gxh3 {[%clk
01:10:36]} {[%emt 00:00:09]} g6 {[%clk 00:29:26]} {[%emt 00:00:50]} 33. fxg6
{[%clk 01:10:50]} {[%emt 00:00:15]} hxg6 {[%clk 00:29:50]} {[%emt 00:00:06]} 34.
Kg2 {[%clk 01:10:51]} {[%emt 00:00:29]} Kh7 {[%clk 00:29:11]} {[%emt 00:01:09]}
35. Be1 {[%clk 01:10:41]} {[%emt 00:00:38]} Kh6 {[%clk 00:26:40]} {[%emt
00:03:03]} 36. Bg3 {[%clk 01:10:56]} {[%emt 00:00:15]} Bb4 {[%clk 00:26:11]}
{[%emt 00:00:58]} 37. Kf3 {[%clk 01:11:01]} {[%emt 00:00:23]} Kg5 {[%clk
00:24:14]} {[%emt 00:02:30]} 38. h4+ {[%clk 01:09:52]} {[%emt 00:01:38]} Kf5
{[%clk 00:24:27]} {[%emt 00:00:17]} 39. h3 {[%clk 01:09:58]} {[%emt 00:00:24]}
Ke6 {[%clk 00:22:32]} {[%emt 00:02:26]} 40. Ke3 {[%clk 01:09:50]} {[%emt
00:00:38]} f5 {[%clk 00:10:18]} {[%emt 00:12:44]} {White's phone was turned on
in the playing area.} 0-1